bitfinex/quotes_ETHUSD_20220117
["timestamp","ask_amount","ask_price","bid_price","bid_amount"]
[1642446880517,0.00170527,3224.8,3224.3,0.77627685]
[1642446880718,0.00113684,3224.7,3224.5,0.77511]
[1642446881117,0.00397896,3225.2,3224.5,0.77511]
[1642446881318,0.20290152,3225.0,3224.5,0.77511]
[1642446881667,0.00227369,3224.9,3224.5,0.77511]
[1642446882066,0.00170527,3224.8,3224.5,0.77511]
[1642446882470,0.00113684,3224.7,3224.5,1.55025]
[1642446882870,0.00397896,3225.2,3224.5,1.55025]
[1642446883269,1.13801333,3225.3,3224.4,1.55022]
[1642446883270,0.00341054,3225.1,3224.4,1.55022]
[1642446883670,1.13801333,3225.3,3224.4,1.55022]
[1642446883671,0.00284211,3225.0,3224.4,1.55022]
[1642446883872,0.00284211,3225.0,3224.3,0.00113685]
[1642446884073,0.00227369,3224.9,3224.3,0.00113685]
[1642446884273,1.44228474,3224.7,3224.2,0.00170527]
[1642446884474,1.44228474,3224.7,3224.2,1.17620527]
[1642446884674,1.44228474,3224.7,3224.2,0.00170527]
[1642446884875,1.44228474,3224.7,3224.3,0.00113685]
[1642446885178,0.00170527,3224.8,3224.2,0.00170527]
[1642446885425,0.00170527,3224.8,3224.5,0.028]
[1642446885614,0.00113684,3224.7,3224.5,0.028]
[1642446886012,0.00341054,3225.1,3224.5,0.028]
[1642446886214,1.13954887,3225.1,3224.5,0.028]
[1642446886412,0.00284211,3225.0,3224.5,0.028]
[1642446886914,0.00227369,3224.9,3224.5,0.028]
[1642446887312,0.00170527,3224.8,3224.5,0.028]
[1642446887716,0.00113684,3224.7,3224.5,0.028]
[1642446888114,0.00284211,3225.0,3224.5,0.028]
[1642446888513,0.00227369,3224.9,3224.5,0.028]
[1642446888913,0.00170527,3224.8,3224.5,0.028]
[1642446889366,1.13613833,3225.1,3224.5,0.028]
[1642446889367,0.00113684,3224.7,3224.5,0.028]
[1642446889766,0.00284211,3225.0,3224.5,0.028]
[1642446889970,0.00713001,3224.9,3224.5,0.028]
[1642446890167,0.00227369,3224.9,3224.5,0.028]
[1642446890373,0.00170527,3224.8,3224.5,0.028]
[1642446890769,0.00113684,3224.7,3224.5,0.028]
[1642446891169,1.13613833,3225.1,3224.5,0.028]
[1642446891170,0.00284211,3225.0,3224.5,0.028]
[1642446891569,0.00227369,3224.9,3224.5,0.028]
[1642446891969,0.00170527,3224.8,3224.5,0.028]
[1642446892370,0.00113684,3224.7,3224.5,0.028]
[1642446892770,0.00284211,3225.0,3224.5,0.028]
[1642446893215,0.00227369,3224.9,3224.5,0.028]
[1642446893616,0.00170527,3224.8,3224.5,0.028]
[1642446894018,0.00113684,3224.7,3224.5,0.028]
[1642446894421,0.00284211,3225.0,3224.5,0.028]
[1642446894621,0.00284211,3225.0,3224.6,1.955259]
[1642446894622,0.56482276,3225.0,3224.6,1.955259]
[1642446894826,2.83818679,3224.9,3224.6,1.955259]
[1642446895025,0.46678647,3224.9,3224.6,1.955259]
[1642446895223,0.00170527,3224.8,3224.6,1.955259]
[1642446895627,0.00170527,3224.8,3224.5,0.028]
[1642446895628,0.00113684,3224.7,3224.5,0.028]
[1642446895922,0.46451278,3224.9,3224.5,0.028]
[1642446895923,7.88221363,3224.6,3224.5,0.028]
[1642446896322,1.33221363,3224.6,3224.5,0.028]
[1642446896523,8.63221363,3224.6,3224.5,0.028]
[1642446896964,1.33221363,3224.6,3224.5,0.028]
[1642446897165,1.89419428,3224.6,3224.5,0.028]
[1642446900422,1.89419428,3224.6,3224.5,1.97725353]
[1642446901316,22.00839428,3224.6,3224.2,0.00170527]
[1642446901513,0.02443284,3224.5,3224.2,0.00170527]
[1642446901715,0.452,3224.4,3223.7,0.00454739]
[1642446901915,6.2024,3224.3,3223.7,0.00454739]
[1642446902614,6.2024,3224.3,3223.5,0.00568424]
[1642446903419,1.19002538,3223.7,3223.5,0.00568424]
[1642446903614,1.19002538,3223.7,3223.1,1.55091]
[1642446903615,1.19002538,3223.7,3223.4,0.00625266]
[1642446904475,6.2024,3224.3,3223.4,0.00625266]
[1642446904679,3.74886271,3224.2,3223.4,0.78166266]
[1642446904874,3.61174401,3224.2,3223.3,0.00682109]
[1642446905074,3.61174401,3224.2,3223.5,0.00568424]
[1642446905075,3.60216301,3224.2,3223.5,0.00568424]
[1642446905279,0.452,3224.1,3223.3,0.00682109]
[1642446905577,0.00492441,3223.9,3223.3,0.00682109]
[1642446905775,0.452,3223.8,3223.3,0.00682109]
[1642446905978,6.2024,3224.0,3223.3,0.00682109]
[1642446905979,0.452,3223.7,3223.3,0.00682109]
[1642446906177,0.452,3223.6,3223.3,0.00682109]
[1642446906375,1.57509481,3223.5,3223.3,0.00682109]
[1642446907376,13.77415149,3223.4,3223.3,0.00682109]
[1642446907676,19.97655149,3223.4,3223.3,0.00682109]
[1642446908216,19.97655149,3223.4,3222.7,0.01023163]
[1642446908626,0.452,3223.3,3222.7,0.01023163]
[1642446908818,10.90970732,3223.2,3222.7,0.01023163]
[1642446909017,0.452,3223.1,3222.7,0.01023163]
[1642446909221,10.75978107,3223.0,3222.7,0.01023163]
[1642446909420,8.63808056,3222.8,3222.7,0.01023163]
[1642446909620,19.05821607,3222.8,3222.7,0.01023163]
[1642446910223,19.51021607,3222.8,3222.7,0.01023163]
[1642446911022,19.51021607,3222.8,3222.3,0.01250532]
[1642446912271,20.99634795,3222.8,3222.3,0.01250532]
[1642446912772,20.99634795,3222.8,3222.0,0.01421059]
[1642446913370,19.51021607,3222.8,3222.0,0.01421059]
[1642446913976,20.28621707,3222.8,3221.9,0.01477901]
[1642446914174,20.32277417,3222.8,3221.9,0.01477901]
[1642446914574,20.11877602,3222.8,3221.9,0.01477901]
[1642446914774,1.49011133,3222.3,3221.9,0.01477901]
[1642446914976,6.2024,3222.2,3221.9,0.01477901]
[1642446915175,10.04742917,3222.2,3221.9,0.01477901]
[1642446916120,10.04742917,3222.2,3221.8,0.01534744]
[1642446916723,6.2024,3222.2,3221.8,0.01534744]
[1642446917524,6.2024,3222.2,3221.8,2.73363245]
[1642446917723,6.2024,3222.2,3221.9,4.34230764]
[1642446917924,6.2024,3222.2,3222.0,0.01095724]
[1642446918124,6.2024,3222.2,3222.0,0.01421059]
[1642446918323,6.2024,3222.2,3222.1,15.91364217]
[1642446918524,6.2024,3222.2,3222.1,15.9]
[1642446918725,6.2024,3222.2,3222.1,15.91364217]
[1642446919368,6.2024,3222.2,3222.1,19.16364217]
[1642446919569,6.2024,3222.2,3222.1,19.46364217]
[1642446919972,6.40639815,3222.2,3222.1,19.46364217]
[1642446920170,6.40639815,3222.2,3222.1,15.91364217]
[1642446920171,2.36472513,3222.2,3222.1,15.91364217]
[1642446920669,2.94708397,3223.5,3222.2,18.45]
[1642446920670,1.65973798,3223.5,3222.2,18.45]
[1642446920871,1.65973798,3223.5,3222.6,1.55116]
[1642446921072,1.65973798,3223.5,3222.7,3.65795213]
[1642446921272,1.65973798,3223.5,3222.7,3.66818376]
[1642446921479,1.65973798,3223.5,3222.8,0.0096632]
[1642446922072,1.65973798,3223.5,3223.0,1.21674361]
[1642446922474,1.65973798,3223.5,3223.1,3.54826196]
[1642446922672,1.65973798,3223.5,3223.1,0.00795793]
[1642446923115,1.65973798,3223.5,3223.1,3.45986476]
[1642446923316,1.65973798,3223.5,3223.1,0.00795793]
[1642446923520,1.65973798,3223.5,3223.1,3.46414087]
[1642446923720,1.65973798,3223.5,3223.2,2.54486415]
[1642446923921,1.1051433,3224.1,3223.2,2.54486415]
[1642446923922,0.93013941,3223.4,3223.2,2.54486415]
[1642446924126,0.93013941,3223.4,3223.3,0.00682109]
[1642446924321,0.93013941,3223.4,3223.3,7.55682109]
[1642446925326,0.93013941,3224.0,3223.3,9.32625524]
[1642446925724,0.93013941,3224.0,3223.5,0.77546]
[1642446926025,0.93013941,3224.0,3223.6,0.00511582]
[1642446927371,2.79815712,3224.3,3223.7,1.76943415]
[1642446927372,3.72829653,3224.3,3223.7,1.76943415]
[1642446927671,6.2035,3224.2,3223.8,0.00397897]
[1642446928371,0.93013941,3223.9,3223.8,0.00397897]
[1642446929376,0.93013941,3224.1,3223.8,1.77341312]
[1642446929576,6.2035,3224.0,3223.8,1.77341312]
[1642446929876,6.2035,3224.0,3223.9,0.00341055]
[1642446930518,6.2035,3224.0,3223.9,1.7728447]
[1642446931118,7.13363941,3224.0,3223.9,1.7728447]
[1642446932221,16.18363941,3224.0,3223.9,1.7728447]
[1642446933122,7.13363941,3224.0,3223.9,1.7728447]
[1642446933321,8.70628578,3224.0,3223.9,0.00341055]
[1642446933723,8.70628578,3224.0,3223.1,0.00795793]
[1642446934380,8.70628578,3224.0,3223.1,1.62784646]
[1642446934381,7.13363941,3224.0,3223.1,1.62784646]
[1642446935377,0.93013941,3223.9,3223.2,1.61988853]
[1642446935578,6.2035,3223.8,3223.2,1.61988853]
[1642446935777,6.2035,3223.8,3223.3,0.00682109]
[1642446937178,0.93013941,3223.7,3223.4,1.61988853]
[1642446937379,6.2035,3223.6,3223.3,0.00682109]
[1642446937578,6.2035,3223.6,3223.5,0.00568424]
[1642446938520,6.2035,3223.6,3223.2,0.77553]
[1642446938721,7.13602373,3223.6,3223.5,1.62000371]
[1642446939120,7.13602373,3223.6,3223.5,1.62568795]
[1642446939321,7.13602373,3223.6,3223.5,0.63068795]
[1642446945525,7.08602373,3223.6,3223.5,0.63068795]
[1642446956022,24.53802373,3223.6,3223.5,0.63068795]
[1642446957467,24.53802373,3223.6,3223.5,0.00568424]
[1642446957670,27.82422635,3223.6,3223.5,0.00568424]
[1642446957968,0.77589,3223.4,3222.6,0.00511581]
[1642446958166,6.6055,3223.3,3222.6,0.00511581]
[1642446958367,1.39004664,3223.2,3222.4,0.00625266]
[1642446958570,6.6055,3223.1,3222.4,0.00625266]
[1642446958770,8.38670957,3223.1,3222.4,0.00625266]
[1642446958966,8.38670957,3223.1,3222.3,0.00682108]
[1642446958967,1.2225,3223.0,3222.3,0.00682108]
[1642446959166,7.38152,3222.9,3222.3,0.00682108]
[1642446959570,7.41329264,3222.9,3222.3,0.00682108]
[1642446960071,1.12107436,3222.4,3222.3,0.00682108]
[1642446960274,7.72657436,3222.4,3222.3,0.00682108]
[1642446960918,6.6055,3222.4,3222.3,0.00682108]
[1642446961118,6.6055,3222.4,3222.0,0.00852635]
[1642446961319,6.6055,3222.4,3221.8,0.0096632]
[1642446961922,7.53802373,3222.4,3221.8,0.0096632]
[1642446962827,0.93252373,3222.3,3221.8,1.50846276]
[1642446963225,0.93252373,3222.3,3221.9,0.00909477]
[1642446965977,0.93252373,3222.3,3221.8,0.0096632]
[1642446966575,1.23480137,3222.2,3221.8,0.0096632]
[1642446966975,0.93252373,3222.3,3221.8,0.0096632]
[1642446967375,0.93252373,3222.1,3221.8,0.0096632]
[1642446968021,0.88252373,3222.1,3221.8,0.0096632]
[1642446968216,1.17126244,3222.2,3221.8,0.0096632]
[1642446968916,1.17126244,3222.2,3221.8,1.50846276]
[1642446969319,1.17126244,3222.2,3221.9,0.00909477]
[1642446970419,6.1535,3222.4,3221.7,0.01023162]
[1642446971667,1.13790559,3222.2,3221.7,0.01023162]
[1642446972370,1.13790559,3222.2,3221.6,0.01080004]
[1642446972774,0.0175457,3222.1,3221.6,0.01080004]
[1642446973073,1.13790559,3222.2,3221.6,0.01080004]
[1642446974575,1.58990559,3222.2,3221.6,0.01080004]
[1642446974977,6.1535,3222.1,3221.6,0.01080004]
[1642446976023,6.1535,3222.1,3221.6,3.69621772]
[1642446976224,6.1535,3222.1,3221.6,0.01080004]
[1642446976425,6.1535,3222.1,3221.7,0.01023162]
[1642446976726,6.1535,3222.1,3221.6,0.01080004]
[1642446981072,0.00542352,3222.0,3221.6,0.01080004]
[1642446981272,6.1535,3221.9,3221.4,0.01193689]
[1642446985724,1.30712219,3221.7,3221.4,0.01193689]
[1642446986526,1.30712219,3221.7,3221.1,0.01364216]
[1642446987266,1.30712219,3221.7,3221.4,1.49879956]
[1642446987467,6.1535,3221.9,3221.4,1.49879956]
[1642446987667,6.1535,3221.9,3221.5,0.01136847]
[1642446988874,6.1535,3221.9,3221.4,0.01193689]
[1642446989473,6.1535,3221.9,3221.6,1.11697725]
[1642446989874,6.1535,3221.9,3221.7,0.01023162]
[1642446990718,6.1535,3221.9,3221.6,0.01080004]
[1642446991121,6.1535,3221.9,3221.8,1.11697725]
[1642446991524,6.1535,3221.9,3221.8,1.12664045]
[1642446992624,6.1535,3221.9,3221.8,0.18851434]
[1642446992826,7.828,3221.9,3221.8,0.18851434]
[1642446994268,7.828,3221.9,3221.8,0.0096632]
[1642446994670,7.828,3221.9,3221.4,0.01193689]
[1642446994671,0.00367917,3221.7,3221.4,0.01193689]
[1642446994868,6.6055,3221.6,3221.4,0.01193689]
[1642446995167,6.6055,3221.6,3220.8,0.01534743]
[1642446995668,7.3817778,3221.6,3220.8,0.01534743]
[1642446995868,6.6055,3221.6,3220.8,0.01534743]
[1642446996670,1.1831389,3221.4,3220.8,0.01534743]
[1642446996871,6.6055,3221.3,3220.8,0.01534743]
[1642447002572,7.92444215,3221.3,3220.8,0.01534743]
[1642447013424,1.74215099,3221.2,3220.9,0.86200142]
[1642447013624,6.1535,3221.1,3220.9,0.86200142]
[1642447013824,6.1535,3221.1,3221.0,0.01421059]
[1642447015631,7.89565099,3221.1,3221.0,0.87621201]
[1642447022022,7.84565099,3221.1,3221.0,0.87621201]
[1642447022922,7.84565099,3221.1,3221.0,0.57621201]
[1642447024171,7.84565099,3221.1,3220.6,1.49879956]
[1642447024577,7.84565099,3221.1,3220.7,0.00170527]
[1642447024981,6.1035,3221.1,3220.7,0.00170527]
[1642447025579,6.1035,3221.1,3220.6,0.00227369]
[1642447026979,3.55318205,3221.0,3220.6,0.00227369]
[1642447027178,6.1035,3220.9,3220.6,0.00227369]
[1642447027778,6.1035,3220.9,3220.5,0.00284211]
[1642447028022,6.1035,3220.9,3220.2,0.00454738]
[1642447028023,4.67078216,3220.8,3220.2,0.00454738]
[1642447028223,6.1035,3220.7,3220.0,0.00568423]
[1642447028420,4.01452729,3220.6,3220.0,0.00568423]
[1642447029022,4.01452729,3220.6,3219.9,1.06715375]
[1642447029224,0.00284212,3220.5,3219.9,1.06715375]
[1642447029624,4.01452729,3220.6,3219.9,1.06715375]
[1642447029625,0.00227369,3220.4,3219.9,1.06715375]
[1642447029925,0.00170527,3220.3,3219.9,1.06715375]
[1642447030325,0.00113685,3220.2,3219.9,1.06715375]
[1642447030724,3.55274559,3220.6,3219.9,1.06715375]
[1642447030926,0.00341054,3220.6,3219.9,1.06715375]
[1642447031770,0.45541054,3220.6,3219.9,1.06715375]
[1642447032571,0.45541054,3220.6,3220.0,1.49879956]
[1642447032777,3.52515964,3220.5,3220.0,1.49879956]
[1642447033171,6.10577369,3220.4,3220.0,1.49879956]
[1642447033570,0.00170527,3220.3,3220.0,1.49879956]
[1642447033771,6.1035,3220.2,3220.0,1.49879956]
[1642447033971,7.17733685,3220.2,3220.0,1.49879956]
[1642447034376,7.17733685,3220.2,3219.9,1.49879956]
[1642447035075,6.10463685,3220.2,3219.9,1.49879956]
[1642447036927,6.10463685,3220.2,3219.8,1.49879956]
[1642447038428,6.10463685,3220.2,3219.9,1.49879956]
[1642447040378,6.10463685,3220.2,3220.0,1.49879956]
[1642447042931,6.10463685,3220.2,3220.0,2.27505956]
[1642447043320,6.10463685,3220.2,3220.0,0.77626]
[1642447043523,6.10463685,3220.2,3220.0,2.24819933]
[1642447044927,6.10463685,3220.2,3220.1,6.61931974]
[1642447045127,6.10463685,3220.2,3220.1,1.51931974]
[1642447045726,6.10463685,3220.2,3220.1,2.27581937]
[1642447049100,6.10463685,3220.2,3220.1,2.22581937]
[1642447049800,6.10463685,3220.2,3220.1,9.72581937]
[1642447050200,6.10463685,3220.2,3220.1,2.22581937]
[1642447050629,6.10463685,3220.2,3220.1,0.75649963]
[1642447050829,6.10463685,3220.2,3220.1,6.40649963]
[1642447053733,6.10463685,3220.2,3220.1,7.95882963]
[1642447053934,6.10463685,3220.2,3220.1,20.05882963]
[1642447055180,6.10463685,3220.2,3220.1,7.95882963]
[1642447055380,6.10463685,3220.2,3220.1,12.02249632]
[1642447055980,6.10463685,3220.2,3220.1,10.47016632]
[1642447056381,6.10463685,3220.2,3220.1,6.40649963]
[1642447061246,6.10463685,3220.2,3220.1,0.75649963]
[1642447063982,6.1035,3220.2,3220.1,0.75649963]
[1642447064183,8.21181359,3220.2,3220.1,0.75649963]
[1642447064986,6.1035,3220.2,3220.1,0.75649963]
[1642447068528,8.05302129,3220.2,3220.1,0.75649963]
[1642447069586,8.05302129,3220.2,3220.1,7.45649963]
[1642447070387,6.1035,3220.2,3220.1,7.45649963]
[1642447070587,6.1035,3220.2,3220.1,15.45649963]
[1642447070790,6.1035,3220.2,3220.1,16.16949963]
[1642447071687,6.1035,3220.2,3220.1,20.61949963]
[1642447072492,1.2225,3221.3,3220.5,0.77608]
[1642447072692,1.2225,3221.3,3220.7,0.77609]
[1642447072931,6.21602108,3221.2,3220.4,2.93350164]
[1642447073125,6.21602108,3221.2,3220.4,1.55218]
[1642447073324,0.00625266,3221.1,3220.4,1.55218]
[1642447073725,0.00568423,3221.0,3220.4,1.55218]
[1642447074127,7.70853068,3221.2,3220.4,2.32828]
[1642447074128,0.00511581,3220.9,3220.4,2.32828]
[1642447074331,0.00511581,3220.9,3220.7,0.7761]
[1642447074530,0.00454739,3220.8,3220.7,6.1761]
[1642447075130,0.00454739,3220.8,3220.7,0.7761]
[1642447075531,0.00454739,3220.8,3220.7,1.53259963]
[1642447077076,0.00454739,3220.8,3220.7,0.75649963]
[1642447079784,2.11320677,3220.8,3220.7,0.75649963]
[1642447080929,5.76927206,3220.8,3220.7,0.75649963]
[1642447081123,6.22127206,3220.8,3220.7,0.75649963]
[1642447081325,2.56520677,3220.8,3220.7,0.75649963]
[1642447081525,16.57440677,3220.8,3220.7,0.75649963]
[1642447081727,8.77440677,3220.8,3220.7,0.75649963]
[1642447081924,9.30559999,3220.8,3220.7,0.75649963]
[1642447082530,14.20559999,3220.8,3220.7,0.75649963]
[1642447082731,17.89299058,3220.8,3220.7,0.75649963]
[1642447083327,9.30559999,3220.8,3220.7,0.75649963]
[1642447091231,13.00954756,3220.8,3220.7,0.75649963]
[1642447091877,12.9756599,3220.8,3220.7,0.75649963]
[1642447092084,9.30559999,3220.8,3220.7,0.75649963]
[1642447092578,15.20559999,3220.8,3220.7,0.75649963]
[1642447092985,9.30559999,3220.8,3220.7,0.75649963]
[1642447094985,8.30559999,3220.8,3220.7,0.75649963]
[1642447095448,8.29381428,3220.8,3220.7,0.71493824]
[1642447098142,11.91558271,3220.8,3220.7,0.71493824]
[1642447098744,8.29381428,3220.8,3220.7,0.71493824]
[1642447099185,11.90614088,3220.8,3220.7,0.71493824]
[1642447099789,8.29381428,3220.8,3220.7,0.71493824]
[1642447102692,7.84181428,3220.8,3220.7,0.71493824]
[1642447102932,7.31062106,3220.8,3220.7,0.71493824]
[1642447104635,7.30062106,3220.8,3220.7,0.71493824]
[1642447114878,7.30062106,3220.8,3220.7,1.49102824]
[1642447115080,7.30062106,3220.8,3220.7,12.95852824]
[1642447115576,7.83165226,3220.8,3220.7,12.95852824]
[1642447115777,7.83165226,3220.8,3220.7,2.30852824]
[1642447116177,7.83165226,3220.8,3220.7,7.10852824]
[1642447116377,7.83165226,3220.8,3220.7,1.53243824]
[1642447116679,7.83165226,3220.8,3220.7,0.71493824]
[1642447116881,6.7402312,3220.8,3220.7,0.71493824]
[1642447118631,7.1922312,3220.8,3220.7,0.71493824]
[1642447119027,17.3922312,3220.8,3220.7,0.71493824]
[1642447119232,21.28514823,3220.8,3220.7,0.71493824]
[1642447119633,0.01528397,3220.7,3219.9,1.1665]
[1642447119835,0.452,3220.7,3219.9,1.1665]
[1642447120034,6.7402312,3220.8,3220.0,0.00454739]
[1642447120233,6.7402312,3220.8,3220.0,3.64579034]
[1642447120433,6.7402312,3220.8,3220.0,0.00454739]
[1642447120636,6.7402312,3220.8,3220.1,0.00397897]
[1642447121239,6.2092,3220.8,3220.1,0.78020897]
[1642447121677,6.2092,3220.8,3220.2,0.00341054]
[1642447122478,6.2092,3220.8,3220.2,3.66499518]
[1642447122679,1.24243053,3220.4,3220.2,3.66499518]
[1642447122880,6.2092,3220.8,3220.3,0.00284212]
[1642447123080,6.2092,3220.8,3220.4,0.77618]
[1642447123385,6.2092,3220.8,3220.5,4.04883666]
[1642447123780,6.1592,3220.8,3220.6,0.00113685]
[1642447124882,6.1592,3220.8,3220.7,0.77611]
[1642447126329,6.1592,3220.8,3220.7,1.26168348]
[1642447127129,8.83268126,3220.8,3220.7,0.48557348]
[1642447128830,8.83268126,3220.8,3220.4,0.48784718]
[1642447129279,8.83268126,3220.8,3220.5,0.00170527]
[1642447129480,6.69026841,3220.8,3220.5,0.48727875]
[1642447129679,6.1592,3220.8,3220.5,0.48727875]
[1642447129880,6.1592,3220.8,3220.6,0.00113685]
[1642447130480,6.1592,3220.8,3220.6,0.48671033]
[1642447131086,0.53106188,3220.7,3220.6,0.48671033]
[1642447131682,0.53106188,3220.7,3220.6,0.00113685]
[1642447132081,0.53106188,3220.7,3220.4,0.0022737]
[1642447132482,0.04431132,3220.6,3220.4,0.0022737]
[1642447133033,2.74319593,3220.7,3220.4,0.0022737]
[1642447133233,0.53106188,3220.7,3220.4,0.0022737]
[1642447133637,0.53106188,3220.6,3220.4,0.0022737]
[1642447135036,0.53106188,3220.7,3220.4,0.0022737]
[1642447137079,2.21590795,3220.6,3220.4,0.0022737]
[1642447138082,2.21590795,3220.6,3220.3,0.00284212]
[1642447138887,2.21590795,3220.7,3220.3,0.00284212]
[1642447139689,2.21590795,3220.7,3220.4,0.77617]
[1642447140089,2.21590795,3220.7,3220.5,0.00170527]
[1642447140533,0.5310712,3220.6,3220.5,0.00170527]
[1642447141931,2.74697915,3220.6,3220.5,0.00170527]
[1642447143837,2.74697915,3220.6,3220.5,11.06308326]
[1642447144189,2.74697915,3220.6,3220.5,9.00386527]
[1642447145386,6.1592,3220.8,3220.7,19.39851235]
[1642447145586,6.1592,3220.8,3220.7,20.46801235]
[1642447145785,6.1592,3220.8,3220.7,20.76801235]
[1642447147389,6.1592,3220.8,3220.7,24.10395482]
[1642447147788,6.1592,3220.8,3220.7,23.80395482]
[1642447148329,6.1592,3220.8,3220.7,4.88141247]
[1642447148530,6.1592,3220.8,3220.7,1.81546736]
[1642447148727,6.1592,3220.8,3220.7,10.87758768]
[1642447149128,6.1592,3220.8,3220.7,5.27758768]
[1642447149532,6.1592,3220.8,3220.7,3.46212032]
[1642447149733,6.1592,3220.8,3220.7,11.71212032]
[1642447150334,6.1592,3220.8,3220.7,8.25]
[1642447150534,6.1592,3220.8,3220.6,1.53056233]
[1642447152684,6.1592,3220.8,3220.5,0.00170527]
[1642447152882,0.02960601,3220.7,3220.5,0.00170527]
[1642447153080,0.02960601,3220.7,3220.3,1.53056233]
[1642447153081,0.02960601,3220.7,3220.4,0.0022737]
[1642447153481,0.48160601,3220.7,3220.4,0.0022737]
[1642447153684,6.1592,3220.6,3220.4,0.0022737]
[1642447154585,6.260185,3220.6,3220.4,0.0022737]
[1642447160885,6.260185,3220.6,3219.9,1.0687737]
[1642447161087,6.260185,3220.6,3220.0,0.00227369]
[1642447162289,6.25335505,3220.6,3220.0,0.00227369]
[1642447164533,0.01778659,3220.5,3220.0,0.00227369]
[1642447164733,7.57875722,3220.4,3220.0,0.00227369]
[1642447165334,7.57875722,3220.4,3219.8,0.00341054]
[1642447165733,7.57875722,3220.4,3219.7,0.00397896]
[1642447166787,2.26297739,3220.3,3219.7,0.00397896]
[1642447167787,2.26297739,3220.3,3219.8,0.37923582]
[1642447168187,2.26297739,3220.3,3219.9,0.00284211]
[1642447169791,2.26297739,3220.3,3219.7,0.00397896]
[1642447170196,2.26297739,3220.3,3219.7,0.38321478]
[1642447170630,2.26297739,3220.3,3219.8,0.00341054]
[1642447170929,2.26297739,3220.3,3219.8,0.38264636]
[1642447171332,2.26297739,3220.3,3219.9,0.00284211]
[1642447171734,2.26297739,3220.3,3219.9,0.38207793]
[1642447172534,2.26297739,3220.3,3219.9,0.00284211]
[1642447172935,2.26297739,3220.3,3219.7,0.00397896]
[1642447173536,2.26297739,3220.3,3219.7,1.53454129]
[1642447173934,2.26297739,3220.3,3219.8,0.00341054]
[1642447174683,2.26297739,3220.3,3219.7,0.00397896]
[1642447176086,2.26297739,3220.3,3219.8,0.37923582]
[1642447176284,2.26297739,3220.3,3219.9,3.69810232]
[1642447176484,2.26297739,3220.3,3219.9,3.70094443]
[1642447177085,2.26297739,3220.3,3220.0,1.53056233]
[1642447177486,2.26297739,3220.3,3220.1,0.00170527]
[1642447177688,2.26297739,3220.3,3220.1,0.77793527]
[1642447178132,2.26297739,3220.3,3220.2,0.00113684]
[1642447178332,8.41534744,3220.3,3220.2,0.00113684]
[1642447179539,8.41534744,3220.3,3220.2,0.38037266]
[1642447182684,8.41534744,3220.3,3220.2,4.06845006]
[1642447182882,8.41534744,3220.3,3220.2,5.62070006]
[1642447183282,8.41534744,3220.3,3220.2,23.80070006]
[1642447183886,8.41534744,3220.3,3220.2,5.62070006]
[1642447184288,8.41534744,3220.3,3220.2,15.41568267]
[1642447184689,6.15237005,3220.3,3220.2,6.896245]
[1642447184890,6.15237005,3220.3,3220.2,1.91093499]
[1642447185288,6.15237005,3220.3,3220.2,0.38037266]
[1642447185740,6.15237005,3220.3,3220.2,0.00113684]
[1642447186838,8.4184025,3220.3,3220.2,0.3784109]
[1642447191386,2.71722346,3220.3,3220.2,0.3784109]
[1642447193031,2.71722346,3220.3,3220.2,0.00113684]
[1642447193437,2.71722346,3220.3,3219.8,0.00341054]
[1642447194637,2.26603245,3220.2,3219.8,0.00341054]
[1642447194838,2.36701745,3220.2,3219.8,0.00341054]
[1642447195336,2.36701745,3220.2,3219.9,0.7763]
[1642447196538,2.26603245,3220.1,3220.0,0.37727406]
[1642447197582,2.21603245,3220.1,3220.0,0.37727406]
[1642447198487,2.21603245,3220.1,3219.8,0.00341054]
[1642447198883,0.02187177,3220.0,3219.8,0.00341054]
[1642447199083,2.21603245,3220.1,3219.8,0.00341054]
[1642447199987,2.21603245,3220.1,3219.8,0.77971054]
[1642447200441,2.21603245,3220.1,3219.9,0.00284211]
[1642447204281,2.21603245,3220.1,3219.8,0.77486011]
[1642447204682,2.21603245,3220.1,3219.8,0.72486011]
[1642447206885,2.21603245,3220.1,3219.8,4.14920767]
[1642447207085,2.21603245,3220.1,3219.8,0.72486011]
[1642447207284,2.21603245,3220.1,3219.8,4.16487079]
[1642447207486,2.21603245,3220.1,3219.8,0.72486011]
[1642447208131,2.21603245,3220.1,3219.8,1.50110011]
[1642447208331,2.21603245,3220.1,3219.8,4.9799697]
[1642447208935,0.100985,3220.2,3219.8,4.9799697]
[1642447209134,0.100985,3220.2,3219.8,6.51053203]
[1642447209336,0.00113684,3220.1,3219.8,6.51053203]
[1642447209538,0.08752743,3220.2,3219.9,8.8]
[1642447209738,0.08752743,3220.2,3220.0,5.02021507]
[1642447209937,0.08752743,3220.2,3220.1,3.50712247]
[1642447210339,0.08752743,3220.2,3220.0,2.32857]
[1642447211140,0.08752743,3220.2,3220.1,3.59640689]
[1642447213386,0.08752743,3220.2,3220.1,4.37259689]
[1642447213687,0.08752743,3220.2,3220.1,5.90315922]
[1642447214487,0.08752743,3220.2,3220.1,2.30675233]
[1642447214685,0.08752743,3220.2,3220.1,2.25675233]
[1642447215935,0.08752743,3220.2,3220.1,8.00675233]
[1642447216140,0.08752743,3220.2,3220.1,6.47619]
[1642447217040,0.08752743,3220.2,3220.1,0.72619]
[1642447217842,0.08752743,3220.2,3220.0,1.53056233]
[1642447218041,0.10253944,3220.2,3220.0,1.53056233]
[1642447218241,0.08752743,3220.2,3220.0,1.53056233]
[1642447218440,0.08752743,3220.2,3220.1,0.39195911]
[1642447220093,2.34056112,3220.2,3219.9,0.77741684]
[1642447220294,0.01113639,3220.1,3219.9,0.77741684]
[1642447220593,2.34056112,3220.2,3219.9,0.77741684]
[1642447221195,0.08752743,3220.2,3219.9,0.00113684]
[1642447221595,0.08752743,3220.2,3220.0,0.39195911]
[1642447222794,0.08752743,3220.2,3219.9,0.77741684]
[1642447222795,2.25306011,3220.1,3219.9,0.77741684]
[1642447223838,2.25306011,3220.1,3220.0,0.39195911]
[1642447224640,2.15306011,3220.1,3220.0,0.39195911]
[1642447228888,0.08752743,3220.2,3220.0,0.39195911]
[1642447231635,0.08752743,3220.2,3220.0,1.92252144]
[1642447234042,0.10934334,3220.2,3220.0,1.92252144]
[1642447234486,0.08752743,3220.2,3220.0,1.92252144]
[1642447234892,0.08752743,3220.2,3220.0,0.39195911]
[1642447236085,0.08752743,3220.2,3219.9,0.00113684]
[1642447236287,0.08752743,3220.2,3219.9,1.53169917]
[1642447237089,0.08752743,3220.2,3219.9,5.0234404]
[1642447237287,0.08752743,3220.2,3219.9,1.53169917]
[1642447238939,0.08752743,3220.2,3219.9,0.00113684]
[1642447239748,0.08752743,3220.2,3219.8,0.7763]
[1642447241895,0.00575606,3220.1,3219.8,2.30686233]
[1642447242091,0.08752743,3220.2,3219.8,2.30686233]
[1642447244299,0.08752743,3220.2,3219.8,1.53056233]